fUST/lending_fUST_20260101
["ID","MTS","AMOUNT","RATE_DAILY","PERIOD"]
[400215495,1767199851596,-151.0,0.00027654,7]
[400215496,1767199851605,-346.674875,0.00027654,7]
[400215497,1767199851614,-151.0,0.00027654,7]
[400215498,1767199851623,-1323.99,0.00027671,2]
[400215499,1767199851633,-1323.99,0.00027945,2]
[400215500,1767199851642,-1324.19,0.00028219,2]
[400215501,1767199851653,-599.7286954,0.00034849,30]
[400215502,1767199851663,-675.0642905,0.00034849,30]
[400215503,1767199851672,-346.674875,0.000365,31]
[400215504,1767199851681,-151.0,0.000365,31]
[400215505,1767199851690,-346.674875,0.000365,31]
[400215506,1767199851699,-151.0,0.000365,31]
[400215507,1767199851710,-346.674875,0.000365,31]
[400215508,1767199851719,-151.0,0.000365,31]
[400215509,1767199851729,-6827.80419518,0.00037391,20]
[400215510,1767199851818,-3334.98135389,0.00024321,2]
[400215511,1767199851828,-346.674875,0.00027654,7]
[400215512,1767199851837,-180.42676,0.00027654,7]
[400215513,1767199851850,-8560.40346529,0.00030817,30]
[400215514,1767199851861,-1052.10460602,0.00030817,30]
[400215890,1767200880808,156.37,8.492e-05,2]
[400215891,1767200881077,156.37,8.492e-05,2]
[400215892,1767200881481,156.37,8.492e-05,2]
[400215904,1767200946138,-346.12489046,0.00011244,2]
[400215905,1767200946158,-190.3949265,0.00011285,2]
[400215906,1767200946178,-300.0,0.00011584,2]
[400215907,1767200946205,-90224.49991524,0.00011585,2]
[400215908,1767200961091,-349.23219665,0.00011585,2]
[400215909,1767200963815,200.0,0.00011203,3]
[400215910,1767200968174,-183721.933388,0.00011585,2]
[400215911,1767200970068,-725704.33450011,0.00011585,2]
[400215912,1767200970088,-339.20239265,0.00011634,2]
[400215913,1767200970110,-500.0,0.00011683,2]
[400215914,1767200970130,-500.0,0.00011683,2]
[400215915,1767200970151,-500.0,0.00011683,2]
[400215916,1767200970172,-500.0,0.00011683,2]
[400215917,1767200970192,-500.0,0.00011683,2]
[400215918,1767200970217,-500.0,0.00011683,2]
[400215919,1767200970237,-500.0,0.00011683,2]
[400215920,1767200970258,-500.0,0.00011683,2]
[400215921,1767200970418,-500.0,0.00011683,2]
[400215922,1767200970443,-480.34216413,0.00011683,2]
[400215923,1767200970464,-500.0,0.00011683,2]
[400215924,1767200970485,-500.0,0.00011683,2]
[400215925,1767200970508,-500.0,0.00011683,2]
[400215926,1767200970530,-500.0,0.00011683,2]
[400215927,1767200970551,-500.0,0.00011683,2]
[400215928,1767200970571,-500.0,0.00011683,2]
[400215929,1767200970591,-500.0,0.00011683,2]
[400215931,1767200970612,-533.63846639,0.00011683,2]
[400215932,1767200970633,-296.35211898,0.00011683,2]
[400215934,1767200970652,-500.0,0.00011683,2]
[400215935,1767200970672,-500.0,0.00011683,2]
[400215937,1767200970692,-578.11573499,0.00011683,2]
[400215939,1767200970716,-500.0,0.00011683,2]
[400215940,1767200970736,-500.0,0.00011683,2]
[400215942,1767200970756,-500.0,0.00011683,2]
[400215944,1767200970776,-500.0,0.00011683,2]
[400215945,1767200970796,-500.0,0.00011683,2]
[400215947,1767200970816,-500.0,0.00011683,2]
[400215948,1767200970837,-500.0,0.00011683,2]
[400215950,1767200970857,-500.0,0.00011683,2]
[400215952,1767200970877,-50000.0,0.00011684,2]
[400215953,1767200970896,-300.0,0.00011684,2]
[400215955,1767200970916,-500.0,0.00011685,2]
[400215956,1767200970936,-345.03411415,0.00011685,2]
[400215957,1767200970957,-945.2169565,0.00011685,2]
[400215958,1767200970977,-945.2169565,0.00011685,2]
[400215959,1767200970998,-945.2169565,0.00011685,2]
[400215960,1767200971018,-500.0,0.00011685,2]
[400215961,1767200971037,-945.2169565,0.00011685,2]
[400215962,1767200971057,-500.0,0.00011685,2]
[400215963,1767200971077,-945.2169565,0.00011685,2]
[400215964,1767200971098,-945.2169565,0.00011685,2]
[400215965,1767200971117,-266.4109945,0.00011685,2]
[400215966,1767200971138,-945.2169565,0.00011685,2]
[400215967,1767200971157,-945.2169565,0.00011685,2]
[400215968,1767200971177,-945.2169565,0.00011685,2]
[400215969,1767200971197,-945.2169565,0.00011685,2]
[400215970,1767200971221,-945.2169565,0.00011685,2]
[400215971,1767200971242,-945.2169565,0.00011685,2]
[400215972,1767200971264,-945.2169565,0.00011685,2]
[400215973,1767200971286,-945.2169565,0.00011685,2]
[400215974,1767200971305,-500.0,0.00011685,2]
[400215975,1767200971325,-945.2169565,0.00011685,2]
[400215976,1767200971345,-945.2169565,0.00011685,2]
[400215977,1767200971365,-1005.36712646,0.00011685,2]
[400215978,1767200971386,-1005.36712646,0.00011685,2]
[400215979,1767200971407,-1005.36712646,0.00011685,2]
[400215980,1767200971427,-1005.36712646,0.00011685,2]
[400215981,1767200971448,-1005.36712646,0.00011685,2]
[400215982,1767200971469,-1005.36712646,0.00011685,2]
[400215983,1767200971492,-1005.36712646,0.00011685,2]
[400215985,1767200971512,-1005.36712646,0.00011685,2]
[400215987,1767200971532,-1005.36712646,0.00011685,2]
[400215988,1767200971551,-63423.9240922,0.00011686,2]
[400215989,1767200971569,-594.0,0.00012297,2]
[400215990,1767200971590,-150.0,0.00012339,2]
[400215991,1767200971609,-151.0,0.000124,2]
[400215992,1767200971628,-161.83602163,0.000124,2]
[400215993,1767200971647,-151.0,0.000125,2]
[400215994,1767200971665,-151.0,0.000125,2]
[400215995,1767200971682,-151.0,0.000125,2]
[400215996,1767200971701,-151.0,0.000125,2]
[400215997,1767200971723,-151.0,0.000125,2]
[400215998,1767200971743,-151.0,0.000125,2]
[400215999,1767200971763,-151.0,0.000125,2]
[400216000,1767200971784,-151.0,0.000125,2]
[400216001,1767200971803,-151.0,0.000125,2]
[400216002,1767200971823,-151.0,0.000125,2]
[400216003,1767200971843,-151.0,0.000125,2]
[400216004,1767200971864,-151.0,0.000125,2]
[400216005,1767200971884,-420.0,0.00012722,2]
[400216006,1767200971904,-500.0,0.00013273,2]
[400216007,1767200971923,-500.0,0.00013273,2]
[400216008,1767200971943,-500.0,0.00013273,2]
[400216009,1767200971962,-436.0750698,0.00013273,2]
[400216010,1767200971983,-489.48000919,0.00013273,2]
[400216011,1767200972003,-500.0,0.00013273,2]
[400216012,1767200972022,-500.0,0.00013273,2]
[400216013,1767200972041,-500.0,0.00013273,2]
[400216014,1767200972059,-500.0,0.00013273,2]
[400216015,1767200972079,-500.0,0.00013273,2]
[400216016,1767200972099,-150.0,0.00013461,2]
[400216017,1767200972122,-400.25882332,0.00013634,2]
[400216018,1767200972141,-182.86718246,0.00013673,2]
[400216019,1767200972161,-500.0,0.00013698,2]
[400216020,1767200972181,-500.0,0.00013698,2]
[400216021,1767200972202,-500.0,0.00013698,2]
[400216022,1767200972224,-500.0,0.00013698,2]
[400216023,1767200972245,-580.76,0.00013698,2]
[400216024,1767200972264,-1136.183039,0.00013699,2]
[400216025,1767200972286,-1000.0,0.00013699,2]
[400216026,1767200972306,-500.0,0.00013699,2]
[400216027,1767200972327,-500.0,0.00013699,2]
[400216028,1767200972347,-500.0,0.00013699,2]
[400216029,1767200972366,-500.0,0.00013699,2]
[400216030,1767200972387,-158.38534385,0.00013699,2]
[400216031,1767200972407,-500.0,0.00013699,2]
[400216032,1767200972428,-500.0,0.00013699,2]
[400216033,1767200972448,-500.0,0.00013699,2]
[400216034,1767200972469,-500.0,0.00013699,2]
[400216035,1767200972488,-500.0,0.00013699,2]
[400216036,1767200972507,-500.0,0.00013699,2]
[400216037,1767200972527,-500.0,0.00013699,2]
[400216038,1767200972547,-436.1426325,0.00013699,2]
[400216039,1767200972567,-500.0,0.00013699,2]
[400216040,1767200972587,-500.0,0.00013699,2]
[400216041,1767200972606,-500.0,0.00013699,2]
[400216042,1767200972625,-500.0,0.00013699,2]
[400216043,1767200972645,-500.0,0.00013699,2]
[400216044,1767200972667,-500.0,0.00013699,2]
[400216045,1767200972688,-500.0,0.00013699,2]
[400216046,1767200972711,-500.0,0.00013699,2]
[400216047,1767200972733,-640.43328227,0.00013699,2]
[400216048,1767200972755,-500.0,0.00013699,2]
[400216049,1767200972777,-500.0,0.00013699,2]
[400216050,1767200972798,-500.0,0.00013699,2]
[400216051,1767200972820,-500.0,0.00013699,2]
[400216052,1767200972841,-500.0,0.00013699,2]
[400216053,1767200972861,-500.0,0.00013699,2]
[400216054,1767200972882,-500.0,0.00013699,2]
[400216055,1767200972903,-556.87906344,0.00013821,2]
[400216056,1767200972923,-1000.0,0.00013821,2]
[400216057,1767200972944,-1000.0,0.00013821,2]
[400216058,1767200972966,-1000.0,0.00013821,2]
[400216059,1767200972987,-587.0,0.00013972,2]
[400216060,1767200973008,-855.85292071,0.00014058,2]
[400216061,1767200973030,-1000.0,0.00014247,2]
[400216062,1767200973052,-298.50297753,0.00014247,2]
[400216063,1767200973074,-237.68038452,0.00014247,2]
[400216064,1767200973095,-1000.0,0.00014247,2]
[400216065,1767200973116,-1000.0,0.00014247,2]
[400216066,1767200973137,-439.9841302,0.00014247,2]
[400216067,1767200973161,-1094.61,0.00014268,2]
[400216068,1767200973182,-1500.0,0.00014368,2]
[400216069,1767200973205,-1500.0,0.00014368,2]
[400216070,1767200973226,-617.25292854,0.00014368,2]
[400216073,1767200973528,-882.74707146,0.00014368,2]
[400216074,1767200973552,-209.73,0.00014575,2]
[400216075,1767200973575,-1163.70037163,0.00014795,2]
[400216076,1767200973598,-1500.0,0.00014795,2]
[400216077,1767200973620,-1500.0,0.00014795,2]
[400216078,1767200973642,-100000.0,0.00014882,2]
[400216079,1767200973664,-179.25919058,0.00014916,2]
[400216080,1767200973685,-1000.0,0.00014916,2]
[400216081,1767200973708,-2000.0,0.00014916,2]
[400216082,1767200973730,-181.558946,0.00015068,2]
[400216083,1767200973751,-1500.0,0.00015342,2]
[400216084,1767200973772,-1500.0,0.00015342,2]
[400216085,1767200973794,-823.0,0.00015344,2]
[400216086,1767200973815,-245.0,0.000154,20]
[400216087,1767200973836,-2500.0,0.00015464,2]
[400216088,1767200973858,-461.315254,0.00015634,2]
[400216089,1767200973884,-279.64,0.00015696,2]
[400216090,1767200973905,-2608.47131211,0.00016012,2]
[400216091,1767200973930,-500.0,0.00016438,2]
[400216092,1767200973955,-437.58528707,0.00016438,2]
[400216093,1767200973985,-500.0,0.00016438,2]
[400216094,1767200974009,-500.0,0.00016438,2]
[400216095,1767200974035,-500.0,0.00016438,2]
[400216096,1767200974059,-500.0,0.00016438,2]
[400216097,1767200974084,-499.99999999,0.00016438,2]
[400216098,1767200974108,-349.55,0.00016817,2]
[400216099,1767200974131,-288.0,0.00016852,2]
[400216100,1767200974153,-855.85292071,0.0001713,2]
[400216101,1767200974176,-522.37168468,0.00017634,2]
[400216102,1767200974199,-1041.66666667,0.00017852,2]
[400216103,1767200974227,-419.46,0.00017938,2]
[400216104,1767200974250,-181.558946,0.00018493,2]
[400216105,1767200974274,-489.37,0.0001906,2]
[400216106,1767200974299,-500.0,0.00019178,2]
[400216107,1767200974322,-500.0,0.00019178,2]
[400216108,1767200974344,-500.0,0.00019178,2]
[400216109,1767200974367,-500.0,0.00019178,2]
[400216110,1767200974389,-500.0,0.00019178,2]
[400216111,1767200974411,-167.95184871,0.00019178,2]
[400216112,1767200974434,-500.0,0.00019178,2]
[400216113,1767200974457,-500.0,0.00019178,2]
[400216114,1767200974480,-500.0,0.00019178,2]
[400216115,1767200974506,-165.71,0.000192,2]
[400216116,1767200974531,-1038.33,0.000192,2]
[400216117,1767200974553,-160.6,0.000192,2]
[400216118,1767200974575,-9686.67,0.000192,2]
[400216119,1767200974599,-583.42811535,0.00019634,2]
[400216120,1767200974622,-1597.50710874,0.0002,2]
[400216121,1767200974645,-2000.0,0.0002,14]
[400216122,1767200974667,-2000.0,0.0002,14]
[400216123,1767200974689,-2020.9,0.0002,14]
[400216124,1767200974713,-1028.0,0.00020051,2]
[400216125,1767200974738,-1028.0,0.000201,2]
[400216126,1767200974762,-1028.0,0.00020109,2]
[400216127,1767200974785,-1028.0,0.00020148,2]
[400216128,1767200974811,-675.0049275,0.00020176,2]
[400216154,1767201031845,-150.0,0.00012467,2]
[400216155,1767201031855,-151.0,0.00012483,2]
[400216156,1767201031864,-150.0,0.000136,2]
[400216157,1767201031874,-150.0,0.00014733,2]
[400216158,1767201031883,-175.39,0.00015867,2]
[400216159,1767201031893,-219.24,0.00017,2]
[400216160,1767201031902,-856.19519342,0.00017657,2]
[400216161,1767201031912,-263.09,0.00018133,2]
[400216162,1767201031921,-306.93,0.00019267,2]
[400216163,1767201031932,-717.0,0.00019764,2]
[400216164,1767201031941,-897.6414603,0.00019764,2]
[400216165,1767201031951,-5437.1619042,0.00019796,2]
[400216166,1767201031961,-352.9950725,0.00020176,2]
[400216167,1767201031971,-1136.183039,0.00020187,2]
[400216168,1767201031981,-1028.0,0.00020268,2]
[400216169,1767201031990,-1028.0,0.00020372,2]
[400216170,1767201032000,-350.78,0.000204,2]
[400216171,1767201032010,-1028.0,0.00020454,2]
[400216172,1767201032020,-1028.0,0.00020502,2]
[400216173,1767201032030,-1028.0,0.00020719,2]
[400216174,1767201032040,-1028.0,0.00020836,2]
[400216175,1767201032050,-1028.0,0.00020856,2]
[400216176,1767201032061,-1028.0,0.00020937,2]
[400216177,1767201032071,-1028.0,0.00020964,2]
[400216178,1767201032080,-3000.0,0.00021,2]
[400216179,1767201032090,-3000.0,0.0002101,2]
[400216180,1767201032099,-3000.0,0.0002102,2]
[400216181,1767201032109,-1028.0,0.00021029,2]
[400216182,1767201032119,-3000.0,0.0002103,2]
[400216183,1767201032129,-3000.0,0.0002104,2]
[400216184,1767201032138,-1028.0,0.00021042,2]
[400216185,1767201032148,-3000.0,0.0002105,2]
[400216186,1767201032157,-3000.0,0.0002106,2]
[400216187,1767201032166,-1028.0,0.00021063,2]
[400216188,1767201032176,-3000.0,0.0002107,2]
[400216189,1767201032185,-3000.0,0.0002108,2]
[400216190,1767201032195,-3000.0,0.0002109,2]
[400216191,1767201032204,-3000.0,0.000211,2]
[400216192,1767201032213,-1028.0,0.00021102,2]
[400216193,1767201032225,-3000.0,0.0002111,2]
[400216194,1767201032235,-3000.0,0.0002112,2]
[400216195,1767201032244,-3000.0,0.0002113,2]
[400216196,1767201032254,-3213.682167,0.0002114,2]
[400216197,1767201032264,-1028.0,0.00021182,2]
[400216198,1767201032273,-250.0,0.00021335,2]
[400216199,1767201032283,-297.625,0.00021335,2]
[400216200,1767201032293,-856.19519342,0.00021365,2]
[400216201,1767201032303,-1028.0,0.00021406,2]
[400216202,1767201032313,-394.63,0.00021533,2]
[400216203,1767201032322,-1028.0,0.00021548,2]
[400216204,1767201032331,-1025.82174266,0.00021563,2]
[400216252,1767201037920,-2.17825734,0.00021563,2]
[400216253,1767201037930,-644.48454603,0.00021634,2]
[400216254,1767201037939,-150.055,0.00021655,2]
[400216255,1767201037949,-150.142,0.00021655,2]
[400216256,1767201037962,-250.0,0.00021655,2]
[400216257,1767201037974,-151.687,0.00021655,2]
[400216258,1767201037987,-627.0,0.00021655,2]
[400216259,1767201037999,-2156.0,0.00021655,2]
[400216260,1767201038012,-1364.0,0.00021655,2]
[400216261,1767201038023,-416.0,0.00021655,2]
[400216262,1767201038033,-416.0,0.00021655,2]
[400216263,1767201038045,-150.0,0.00021655,2]
[400216264,1767201038057,-1028.0,0.00021782,2]
[400216265,1767201038068,-1203.18233645,0.00021782,2]
[400216266,1767201038080,-781.52,0.00021907,10]
[400216267,1767201038092,-651.27,0.00021907,10]
[400216268,1767201038104,-542.72,0.00021907,10]
[400216269,1767201038119,-241.52387991,0.00021916,2]
[400216270,1767201038131,-703.49920208,0.00021916,2]
[400216271,1767201038144,-2064.77707906,0.00021917,2]
[400216272,1767201038157,-500.0,0.00021917,2]
[400216273,1767201038168,-610.26,0.00021917,2]
[400216274,1767201038182,-1106.98,0.00021917,2]
[400216275,1767201038194,-500.0,0.00021917,2]
[400216276,1767201038205,-504.41364337,0.00021917,2]
[400216277,1767201038217,-843.17,0.00021917,2]
[400216278,1767201038231,-447.91539096,0.00021917,2]
[400216279,1767201038243,-374.71260428,0.00021917,2]
[400216280,1767201038253,-500.0,0.00021917,2]
[400216281,1767201038267,-500.0,0.00021917,2]
[400216282,1767201038280,-500.0,0.00021917,2]
[400216283,1767201038293,-500.0,0.00021917,2]
[400216284,1767201038304,-500.0,0.00021917,2]
[400216285,1767201038315,-1186.49,0.00021917,2]
[400216286,1767201038325,-572.04,0.00021917,2]
[400216287,1767201038335,-369.26572285,0.00021917,2]
[400216288,1767201038346,-874.95,0.00021917,2]
[400216289,1767201038358,-500.0,0.00021917,2]
[400216290,1767201038369,-9696.43,0.00021917,2]
[400216291,1767201038380,-2098.98,0.00021917,2]
[400216292,1767201038392,-500.0,0.00021917,2]
[400216293,1767201038404,-500.0,0.00021917,2]
[400216294,1767201038417,-337.5324406,0.00021917,2]
[400216295,1767201038429,-500.0,0.00021917,2]
[400216296,1767201038440,-500.0,0.00021917,2]
[400216297,1767201038453,-500.0,0.00021917,2]
[400216298,1767201038465,-500.0,0.00021917,2]
[400216299,1767201038477,-500.0,0.00021917,2]
[400216300,1767201038488,-2983.45,0.00021917,2]
[400216301,1767201038501,-181.558946,0.00021918,2]
[400216302,1767201038511,-275.96070951,0.00021918,2]
[400216303,1767201038521,-1028.0,0.00021986,2]
[400216304,1767201038531,-154.64,0.00022,2]
[400216305,1767201038542,-156.46,0.00022,7]
[400216306,1767201038552,-9686.67,0.00022,2]
[400216307,1767201038564,-1028.0,0.00022007,2]
[400216308,1767201038576,-2064.77707906,0.00022191,2]
[400216309,1767201038589,-500.0,0.00022191,2]
[400216310,1767201038600,-610.26,0.00022191,2]
[400216311,1767201038612,-1106.98,0.00022191,2]
[400216312,1767201038622,-501.92749062,0.00022191,2]
[400216313,1767201038633,-843.17,0.00022191,2]
[400216314,1767201038644,-500.0,0.00022191,2]
[400216315,1767201038655,-500.0,0.00022191,2]
[400216316,1767201038667,-500.0,0.00022191,2]
[400216317,1767201038679,-1186.49,0.00022191,2]
[400216318,1767201038690,-572.04,0.00022191,2]
[400216319,1767201038701,-874.95,0.00022191,2]
[400216320,1767201038712,-500.0,0.00022191,2]
[400216321,1767201038722,-9696.43,0.00022191,2]
[400216322,1767201038732,-2098.98,0.00022191,2]
[400216323,1767201038743,-500.0,0.00022191,2]
[400216324,1767201038754,-500.0,0.00022191,2]
[400216325,1767201038766,-500.0,0.00022191,2]
[400216326,1767201038777,-500.0,0.00022191,2]
[400216327,1767201038788,-500.0,0.00022191,2]
[400216328,1767201038798,-500.0,0.00022191,2]
[400216329,1767201038809,-568.76784281,0.00022191,2]
[400216330,1767201038819,-2983.45,0.00022191,2]
[400216331,1767201038830,-452.27,0.00022455,10]
[400216332,1767201038841,-2064.77707906,0.00022465,2]
[400216333,1767201038852,-500.0,0.00022465,2]
[400216334,1767201038863,-610.26,0.00022465,2]
[400216335,1767201038873,-1106.98,0.00022465,2]
[400216336,1767201038884,-843.17,0.00022465,2]
[400216337,1767201038895,-500.0,0.00022465,2]
[400216338,1767201038906,-500.0,0.00022465,2]
[400216339,1767201038917,-500.0,0.00022465,2]
[400216340,1767201038927,-1186.49,0.00022465,2]
[400216341,1767201038939,-572.04,0.00022465,2]
[400216342,1767201038950,-874.95,0.00022465,2]
[400216343,1767201038961,-500.0,0.00022465,2]
[400216344,1767201038971,-9696.43,0.00022465,2]
[400216345,1767201038982,-2098.98,0.00022465,2]
[400216346,1767201038993,-500.0,0.00022465,2]
[400216347,1767201039006,-465.09067796,0.00022465,2]
[400216348,1767201039017,-500.0,0.00022465,2]
[400216349,1767201039028,-500.0,0.00022465,2]
[400216350,1767201039039,-500.0,0.00022465,2]
[400216351,1767201039050,-500.0,0.00022465,2]
[400216352,1767201039061,-2983.45,0.00022465,2]
[400216353,1767201039071,-151.0,0.00022503,2]
[400216354,1767201039082,-438.48,0.00022667,2]
[400216355,1767201039094,-2064.77707906,0.00022739,2]
[400216356,1767201039104,-500.0,0.00022739,2]
[400216357,1767201039115,-610.26,0.00022739,2]
[400216358,1767201039126,-1106.98,0.00022739,2]
[400216359,1767201039137,-843.17,0.00022739,2]
[400216360,1767201039149,-500.0,0.00022739,2]
[400216361,1767201039160,-500.0,0.00022739,2]
[400216362,1767201039171,-500.0,0.00022739,2]
[400216363,1767201039182,-1186.49,0.00022739,2]
[400216364,1767201039194,-572.04,0.00022739,2]
[400216365,1767201039205,-874.95,0.00022739,2]
[400216366,1767201039216,-500.0,0.00022739,2]
[400216367,1767201039230,-9696.43,0.00022739,2]
[400216368,1767201039241,-2098.98,0.00022739,2]
[400216369,1767201039252,-500.0,0.00022739,2]
[400216370,1767201039264,-500.0,0.00022739,2]
[400216371,1767201039275,-500.0,0.00022739,2]
[400216372,1767201039286,-500.0,0.00022739,2]
[400216373,1767201039299,-500.0,0.00022739,2]
[400216374,1767201039310,-873665.76355811,0.0002277,2]
[400216375,1767201039320,-200.54705607,0.00022872,14]
[400216376,1767201039330,-2064.77707906,0.00023013,2]
[400216377,1767201039339,-500.0,0.00023013,2]
[400216378,1767201039348,-610.26,0.00023013,2]
[400216379,1767201039358,-1106.98,0.00023013,2]
[400216380,1767201039367,-843.17,0.00023013,2]
[400216381,1767201039376,-500.0,0.00023013,2]
[400216382,1767201039385,-500.0,0.00023013,2]
[400216383,1767201039395,-500.0,0.00023013,2]
[400216384,1767201039404,-1186.49,0.00023013,2]
[400216385,1767201039414,-572.04,0.00023013,2]
[400216386,1767201039424,-874.95,0.00023013,2]
[400216387,1767201039434,-500.0,0.00023013,2]
[400216388,1767201039443,-9696.43,0.00023013,2]
[400216389,1767201039453,-2098.98,0.00023013,2]
[400216390,1767201039462,-500.0,0.00023013,2]
[400216391,1767201039627,-500.0,0.00023013,2]
[400216392,1767201039642,-500.0,0.00023013,2]
[400216393,1767201039654,-500.0,0.00023013,2]
[400216394,1767201039663,-500.0,0.00023013,2]
[400216395,1767201039673,-2092.0321365,0.00023287,2]
[400216396,1767201039682,-500.0,0.00023287,2]
[400216397,1767201039691,-610.26,0.00023287,2]
[400216398,1767201039700,-1106.98,0.00023287,2]
[400216399,1767201039710,-843.17,0.00023287,2]
[400216400,1767201039719,-286.39883318,0.00023287,2]
[400216401,1767201039728,-500.0,0.00023287,2]
[400216402,1767201039737,-500.0,0.00023287,2]
[400216403,1767201039746,-1186.49,0.00023287,2]
[400216404,1767201039756,-572.04,0.00023287,2]
[400216405,1767201039765,-874.95,0.00023287,2]
[400216406,1767201039775,-500.0,0.00023287,2]
[400216407,1767201039785,-9696.43,0.00023287,2]
[400216408,1767201039794,-2098.98,0.00023287,2]
[400216409,1767201039803,-500.0,0.00023287,2]
[400216410,1767201039813,-500.0,0.00023287,2]
[400216411,1767201039822,-500.0,0.00023287,2]
[400216412,1767201039832,-500.0,0.00023287,2]
[400216413,1767201039841,-500.0,0.00023287,2]
[400216414,1767201039850,-500.0,0.00023561,2]
[400216415,1767201039859,-610.26,0.00023561,2]
[400216416,1767201039868,-1106.98,0.00023561,2]
[400216417,1767201039878,-843.17,0.00023561,2]
[400216418,1767201039887,-500.0,0.00023561,2]
[400216419,1767201039896,-500.0,0.00023561,2]
[400216420,1767201039905,-1186.49,0.00023561,2]
[400216421,1767201039914,-572.04,0.00023561,2]
[400216422,1767201039924,-874.95,0.00023561,2]
[400216423,1767201039934,-500.0,0.00023561,2]
[400216424,1767201039945,-9696.43,0.00023561,2]
[400216425,1767201039955,-2098.98,0.00023561,2]
[400216426,1767201039964,-500.0,0.00023561,2]
[400216427,1767201039973,-500.0,0.00023561,2]
[400216428,1767201039982,-500.0,0.00023561,2]
[400216429,1767201039991,-500.0,0.00023561,2]
[400216430,1767201040001,-500.0,0.00023561,2]
[400216431,1767201040010,-705.5409767,0.00023634,2]
[400216432,1767201040020,-500.0,0.00023835,2]
[400216433,1767201040030,-610.26,0.00023835,2]
[400216434,1767201040039,-1106.98,0.00023835,2]
[400216435,1767201040048,-843.17,0.00023835,2]
[400216436,1767201040057,-500.0,0.00023835,2]
[400216437,1767201040066,-500.0,0.00023835,2]
[400216438,1767201040076,-1186.49,0.00023835,2]
[400216439,1767201040086,-200.90977335,0.00023835,2]
[400216440,1767201040096,-572.04,0.00023835,2]
[400216441,1767201040105,-874.95,0.00023835,2]
[400216442,1767201040115,-500.0,0.00023835,2]
[400216443,1767201040126,-9696.43,0.00023835,2]
[400216444,1767201040135,-2098.98,0.00023835,2]
[400216445,1767201040144,-500.0,0.00023835,2]
[400216446,1767201040153,-500.0,0.00023835,2]
[400216447,1767201040163,-500.0,0.00023835,2]
[400216448,1767201040172,-500.0,0.00023835,2]
[400216449,1767201040182,-1038.33,0.000239,14]
[400216450,1767201040191,-705.18345983,0.000239,2]
[400216451,1767201040200,-705.18345977,0.000239,2]
[400216452,1767201040209,-705.18345977,0.000239,2]
[400216453,1767201040220,-705.18345977,0.000239,2]
[400216454,1767201040232,-705.18345977,0.000239,2]
[400216455,1767201040242,-705.18345977,0.000239,2]
[400216456,1767201040252,-705.18345977,0.000239,2]
[400216457,1767201040263,-705.18345977,0.000239,2]
[400216458,1767201040272,-705.18345977,0.000239,2]
[400216459,1767201040282,-200.54705607,0.00023962,16]
[400216460,1767201040291,-574.21869989,0.00024109,2]
[400216461,1767201040302,-610.26,0.00024109,2]
[400216462,1767201040311,-1106.98,0.00024109,2]
[400216463,1767201040321,-843.17,0.00024109,2]
[400216464,1767201040330,-500.0,0.00024109,2]
[400216465,1767201040339,-500.0,0.00024109,2]
[400216466,1767201040349,-1186.49,0.00024109,2]